fUST/lending_fUST_20251024
["ID","MTS","AMOUNT","RATE_DAILY","PERIOD"]
[392269113,1761294901928,300.0,0.00019099,2]
[392269114,1761294902140,300.0,0.00019099,2]
[392269115,1761294903085,300.0,0.00019099,2]
[392269116,1761294903323,559.2,0.0001909,3]
[392269117,1761294904161,26.46104255,0.00019099,2]
[392269118,1761294904184,273.53895745,0.00019099,2]
[392269119,1761294905150,300.0,0.00019099,2]
[392269120,1761294905336,3093.7180845,0.00019099,2]
[392269121,1761294905749,1200.0,0.00019099,2]
[392269122,1761294906690,291.1231225,0.00019099,2]
[392269123,1761294917017,10000.0,0.000201,10]
[392269124,1761294920886,4841.62983555,0.00019099,2]
[392269125,1761294920913,158.37016445,0.00019099,2]
[392269126,1761294942726,2613.14533463,0.0001902,2]
[392269127,1761294944709,5000.0,0.00019099,2]
[392269128,1761294949031,1627.48101521,0.00018976,2]
[392269129,1761294958005,10000.0,0.000201,10]
[392269130,1761294963565,300.0,0.00019099,2]
[392269131,1761294968452,301.01348571,0.00019099,2]
[392269132,1761294968479,4698.98651429,0.00019099,2]
[392269133,1761294968806,391.54340222,0.0001902,2]
[392269134,1761294969597,4909.48008349,0.00019099,2]
[392269135,1761294969618,5090.51991651,0.00019099,2]
[392269136,1761294970077,172.14989057,0.00019059,2]
[392269137,1761294983376,500.0,0.00019099,2]
[392269138,1761294983410,500.0,0.00019099,2]
[392269139,1761294983440,500.0,0.00019099,2]
[392269140,1761294983474,500.0,0.00019099,2]
[392269141,1761294983505,500.0,0.00019099,2]
[392269142,1761294983533,500.0,0.00019099,2]
[392269143,1761294983565,500.0,0.00019099,2]
[392269144,1761294983600,500.0,0.00019099,2]
[392269145,1761294983652,500.0,0.00019099,2]
[392269146,1761294983685,237.34019292,0.00019099,2]
[392269147,1761294983710,262.65980708,0.00019099,2]
[392269148,1761294983746,500.0,0.00019099,2]
[392269149,1761294983775,287.18663312,0.00019099,2]
[392269150,1761294983805,500.0,0.00019099,2]
[392269151,1761294983838,500.0,0.00019099,2]
[392269152,1761294983869,500.0,0.00019099,2]
[392269153,1761294983898,500.0,0.00019099,2]
[392269154,1761294983930,500.0,0.00019099,2]
[392269155,1761294983980,500.0,0.00019099,2]
[392269156,1761294984022,500.0,0.00019099,2]
[392269157,1761294984073,500.0,0.00019099,2]
[392269158,1761294984100,4950.1635598,0.00019099,2]
[392269159,1761294984122,5049.8364402,0.00019099,2]
[392269160,1761294984151,500.0,0.00019099,2]
[392269161,1761294984240,500.0,0.00019099,2]
[392269162,1761294984288,500.0,0.00019099,2]
[392269163,1761294984324,500.0,0.00019099,2]
[392269164,1761294991640,2950.1735598,0.00019099,2]
[392269165,1761294991662,2049.8264402,0.00019099,2]
[392269166,1761294997562,7950.1835598,0.00019099,2]
[392269167,1761294997583,2049.8164402,0.00019099,2]
[392269168,1761295000197,1678.9699051,0.00019099,2]
[392269169,1761295006788,500.0,0.00019099,2]
[392269170,1761295006815,500.0,0.00019099,2]
[392269171,1761295006841,500.0,0.00019099,2]
[392269172,1761295006871,500.0,0.00019099,2]
[392269173,1761295006900,500.0,0.00019099,2]
[392269174,1761295006927,500.0,0.00019099,2]
[392269175,1761295006969,500.0,0.00019099,2]
[392269176,1761295007036,554.81047195,0.00019099,2]
[392269177,1761295007067,500.0,0.00019099,2]
[392269178,1761295007097,500.0,0.00019099,2]
[392269179,1761295007126,500.0,0.00019099,2]
[392269180,1761295007198,500.0,0.00019099,2]
[392269181,1761295007281,216.41318275,0.00019099,2]
[392269182,1761295007303,283.58681725,0.00019099,2]
[392269183,1761295007340,500.0,0.00019099,2]
[392269184,1761295007389,500.0,0.00019099,2]
[392269185,1761295007444,500.0,0.00019099,2]
[392269186,1761295015745,8216.42318275,0.00019099,2]
[392269187,1761295015767,1783.57681725,0.00019099,2]
[392269188,1761295015793,204.78362383,0.00019099,2]
[392269189,1761295016634,5000.0,0.00019099,2]
[392269190,1761295019248,3011.64955892,0.0001834,2]
[392269191,1761295019270,10000.01,0.0001834,2]
[392269192,1761295019291,10000.01,0.0001834,2]
[392269193,1761295019312,10000.01,0.0001834,2]
[392269194,1761295019334,10000.01,0.0001834,2]
[392269195,1761295019354,10000.01,0.0001834,2]
[392269196,1761295019375,1911.06658828,0.0001834,2]
[392269197,1761295019459,500.0,0.00019099,2]
[392269198,1761295019490,500.0,0.00019099,2]
[392269199,1761295019516,500.0,0.00019099,2]
[392269200,1761295019544,500.0,0.00019099,2]
[392269201,1761295019598,500.0,0.00019099,2]
[392269202,1761295019628,500.0,0.00019099,2]
[392269203,1761295019654,500.0,0.00019099,2]
[392269204,1761295019688,500.0,0.00019099,2]
[392269205,1761295019720,500.0,0.00019099,2]
[392269206,1761295019752,500.0,0.00019099,2]
[392269207,1761295019795,500.0,0.00019099,2]
[392269208,1761295019827,500.0,0.00019099,2]
[392269209,1761295019859,500.0,0.00019099,2]
[392269210,1761295019913,395.45781758,0.00019099,2]
[392269211,1761295019965,500.0,0.00019099,2]
[392269212,1761295020017,500.0,0.00019099,2]
[392269213,1761295020152,193.48559414,0.00019099,2]
[392269214,1761295020177,306.51440586,0.00019099,2]
[392269215,1761295020204,500.0,0.00019099,2]
[392269216,1761295023457,300.0,0.00019099,2]
[392269217,1761295028791,8893.49559414,0.00019099,2]
[392269218,1761295047099,-5000.0,0.00018908,2]
[392269219,1761295048162,0.01,0.00018719,2]
[392269220,1761295048183,4999.99,0.00018719,2]
[392269221,1761295056356,657.0278115,0.00019,2]
[392269222,1761295057150,7295.42830884,0.00021,30]
[392269223,1761295057179,2704.57169116,0.00021,30]
[392269224,1761295064869,4342.9921885,0.00019,2]
[392269225,1761295064890,657.0078115,0.00019,2]
[392269226,1761295073023,4943.23608381,0.00019,2]
[392269227,1761295076105,10000.0,0.000201,10]
[392269228,1761295076967,196.0,0.00016,2]
[392269229,1761295077141,196.0,0.00016027,2]
[392269230,1761295077294,196.0,0.00016053,2]
[392269231,1761295077481,196.0,0.0001608,2]
[392269232,1761295077915,196.0,0.00016106,2]
[392269233,1761295077946,196.0,0.00016133,2]
[392269234,1761295077973,196.0,0.00016159,2]
[392269235,1761295078149,196.0,0.00016186,2]
[392269236,1761295078652,196.0,0.00016213,2]
[392269237,1761295078678,196.0,0.00016239,2]
[392269238,1761295078708,196.0,0.00016266,2]
[392269239,1761295078809,196.0,0.00016292,2]
[392269240,1761295078962,196.0,0.00016319,2]
[392269241,1761295079194,196.0,0.00016346,2]
[392269242,1761295079357,196.0,0.00016372,2]
[392269243,1761295079516,196.0,0.00016399,2]
[392269244,1761295079661,196.0,0.00016425,2]
[392269245,1761295079836,196.0,0.00016452,2]
[392269246,1761295079999,196.0,0.00016478,2]
[392269247,1761295080158,196.0,0.00016505,2]
[392269248,1761295080318,196.0,0.00016532,2]
[392269249,1761295080702,196.0,0.00016558,2]
[392269250,1761295080864,87.76610469,0.00016585,2]
[392269251,1761295080886,108.23389531,0.00016585,2]
[392269252,1761295081022,196.0,0.00016611,2]
[392269253,1761295081199,196.0,0.00016638,2]
[392269254,1761295081357,196.0,0.00016665,2]
[392269255,1761295081504,196.0,0.00016691,2]
[392269256,1761295081649,196.0,0.00016718,2]
[392269257,1761295081815,196.0,0.00016744,2]
[392269258,1761295081972,196.0,0.00016771,2]
[392269259,1761295082140,196.0,0.00016797,2]
[392269260,1761295082357,196.0,0.00016824,2]
[392269261,1761295082493,196.0,0.00016851,2]
[392269262,1761295082871,196.0,0.00016877,2]
[392269263,1761295083012,196.0,0.00016904,2]
[392269264,1761295083157,196.0,0.0001693,2]
[392269265,1761295083300,196.0,0.00016957,2]
[392269266,1761295083452,196.0,0.00016984,2]
[392269267,1761295083638,196.0,0.0001701,2]
[392269268,1761295083812,196.0,0.00017037,2]
[392269269,1761295083960,196.0,0.00017063,2]
[392269270,1761295084119,196.0,0.0001709,2]
[392269271,1761295084299,196.0,0.00017116,2]
[392269272,1761295084446,196.0,0.00017143,2]
[392269273,1761295084692,196.0,0.0001717,2]
[392269274,1761295084840,196.0,0.00017196,2]
[392269275,1761295084982,196.0,0.00017223,2]
[392269276,1761295085125,196.0,0.00017249,2]
[392269277,1761295085274,196.0,0.00017276,2]
[392269278,1761295085448,196.0,0.00017303,2]
[392269279,1761295086679,196.0,0.00017329,2]
[392269280,1761295086841,196.0,0.00017356,2]
[392269281,1761295087200,196.0,0.00017382,2]
[392269282,1761295087353,196.0,0.00017409,2]
[392269283,1761295087513,196.0,0.00017435,2]
[392269284,1761295087673,196.0,0.00017462,2]
[392269285,1761295087998,196.0,0.00017489,2]
[392269286,1761295088054,196.0,0.00017515,2]
[392269287,1761295088165,196.0,0.00017542,2]
[392269288,1761295088317,196.0,0.00017568,2]
[392269289,1761295088463,1983.26847688,0.00018692,2]
[392269290,1761295088494,196.0,0.00017595,2]
[392269291,1761295088640,196.0,0.00017622,2]
[392269292,1761295089088,196.0,0.00017648,2]
[392269293,1761295089119,68.50762781,0.00017675,2]
[392269294,1761295089146,127.49237219,0.00017675,2]
[392269295,1761295089184,196.0,0.00017701,2]
[392269296,1761295089295,196.0,0.00017728,2]
[392269297,1761295089627,5000.0,0.00019,2]
[392269298,1761295089654,196.0,0.00017754,2]
[392269299,1761295089803,196.0,0.00017781,2]
[392269300,1761295089959,196.0,0.00017808,2]
[392269301,1761295090115,196.0,0.00017834,2]
[392269302,1761295090267,196.0,0.00017861,2]
[392269303,1761295090421,196.0,0.00017887,2]
[392269304,1761295090572,196.0,0.00017914,2]
[392269305,1761295090725,196.0,0.00017941,2]
[392269306,1761295090880,196.0,0.00017967,2]
[392269307,1761295091039,196.0,0.00017994,2]
[392269308,1761295091200,196.0,0.0001802,2]
[392269309,1761295091372,196.0,0.00018047,2]
[392269310,1761295091529,196.0,0.00018073,2]
[392269311,1761295091681,310.99063652,0.000181,2]
[392269319,1761295112668,5000.0,0.00019,2]
[392269320,1761295114081,5000.01,0.00019,2]
[392269321,1761295114102,4999.99,0.00019,2]
[392269325,1761295135322,5000.0,0.00019,2]
[392269329,1761295143707,0.02,0.00019,2]
[392269330,1761295143728,4999.98,0.00019,2]
[392269331,1761295158721,5000.0,0.00019,2]
[392269332,1761295165702,5000.01,0.00018,2]
[392269333,1761295165724,10000.01,0.00018,2]
[392269334,1761295165745,10000.01,0.00018,2]
[392269335,1761295165768,86480.97908111,0.00018,2]
[392269336,1761295197722,-196.0,0.0001511,2]
[392269337,1761295197754,-196.0,0.00015442,2]
[392269338,1761295197785,-196.0,0.00015774,2]
[392269339,1761295201370,-196.0,0.00016107,2]
[392269340,1761295201398,-196.0,0.00016439,2]
[392269341,1761295201425,-196.0,0.00016771,2]
[392269342,1761295201452,-196.0,0.00017103,2]
[392269343,1761295201480,-196.0,0.00017436,2]
[392269344,1761295201508,-196.0,0.00017768,2]
[392269345,1761295204397,-300.0,0.00017819,2]
[392269346,1761295207469,-1200.0,0.00017819,2]
[392269347,1761295247889,-174.49685838,0.00017819,2]
[392269348,1761295250888,-544.41558252,0.00017819,2]
[392269349,1761295250916,-500.0,0.00017819,2]
[392269350,1761295250945,-500.0,0.00017819,2]
[392269351,1761295250974,-500.0,0.00017819,2]
[392269352,1761295251004,-500.0,0.00017819,2]
[392269353,1761295251226,-500.0,0.00017819,2]
[392269354,1761295251258,-488.38420195,0.00017819,2]
[392269355,1761295251287,-394.97894133,0.00017819,2]
[392269356,1761295251318,-394.68914985,0.00017819,2]
[392269357,1761295251351,-309.68740368,0.00017819,2]
[392269358,1761295262991,-1862.43885747,0.0001782,2]
[392269360,1761295266024,-300.0,0.00017819,2]
[392269361,1761295266061,-9400.01,0.0001782,2]
[392269362,1761295272095,-10000.01,0.0001782,2]
[392269363,1761295279200,-300.0,0.000178,2]
[392269364,1761295279238,-9400.01,0.0001782,2]
[392269365,1761295378081,-290.6834792,0.00017446,2]
[392269366,1761295379919,-234.63472106,0.00017446,2]
[392269367,1761295382117,-304.61107366,0.00017446,2]
[392269795,1761295399523,-309.25,0.00017,2]
[392269800,1761295402744,-345.75950302,0.00017,2]
[392269802,1761295404303,-236.8945931,0.00017,2]
[392269813,1761295409217,-379.55345096,0.00017,2]
[392269816,1761295412489,-292.3562328,0.00017,2]
[392269826,1761295417266,-285.61960498,0.00017,2]
[392269829,1761295418840,-367.77198108,0.00017,2]
[392269833,1761295421392,-300.0,0.00017,2]
[392269839,1761295423418,-282.40713663,0.00017,2]
[392269845,1761295424958,-409.22374534,0.00017,2]
[392269850,1761295426504,-500.0,0.00017,2]
[392269853,1761295428743,-179.90306882,0.00017,2]
[392269858,1761295430219,-247.93383672,0.00017,2]
[392269859,1761295432265,-153.0,0.00017,2]
[392269860,1761295433809,-249.2192281,0.0001683,2]
[392269865,1761295436191,-186.8754605,0.0001683,2]
[392269868,1761295437799,-196.0,0.0001511,2]
[392269869,1761295437823,-196.0,0.00015858,2]
[392269870,1761295437847,-21.1245395,0.00016605,2]
[392269873,1761295442717,-174.8754605,0.00016605,2]
[392269874,1761295442742,-77.03559218,0.0001683,2]
[392269877,1761295443527,-269.27685585,0.0001683,2]
[392269879,1761295448856,-277.59300397,0.00016999,2]
[392269883,1761295452061,-22.40699603,0.00016999,2]
[392269884,1761295452083,-314.25338474,0.00017,2]
[392269886,1761295454257,-368.84436072,0.00017,2]
[392269889,1761295455801,-187.88725035,0.00017,2]
[392269892,1761295458024,-10000.01,0.00017,2]
[392269893,1761295458164,-10000.01,0.00017,2]
[392269894,1761295458276,-10000.01,0.00017,2]
[392269895,1761295458430,-2876.87669564,0.00017,2]
[392269901,1761295467258,-156.3361027,0.00017223,2]
[392269902,1761295467707,300.0,0.00017,2]
[392269903,1761295470340,-165.07709862,0.00017223,2]
[392269904,1761295472518,-202.39586679,0.00017223,2]
[392269905,1761295472541,-76.19093189,0.00017353,2]
[392269912,1761295475478,-119.80906811,0.00017353,2]
[392269913,1761295475501,-70.07072608,0.00017446,2]
[392269914,1761295475523,-110.12020581,0.00017622,2]
[392269917,1761295476916,-300.0,0.00017622,2]
[392269918,1761295479012,300.0,0.00017,2]
[392269921,1761295485930,-486.40397188,0.00017446,2]
[392269923,1761295487539,-211.24914168,0.00017446,2]
[392269927,1761295488978,-166.10512087,0.00017446,2]
[392269930,1761295489332,-4136.24176557,0.00017446,2]
[392269931,1761295489390,300.0,0.00017,2]
[392269932,1761295491116,-468.42473236,0.00017522,2]
[392269933,1761295492559,-178.60695923,0.00017522,2]
[392269935,1761295495729,-212.71980663,0.00017522,2]
[392269936,1761295495756,-99.18326219,0.00017622,2]
[392269937,1761295496790,-168.0,0.00017622,2]
[392269938,1761295498243,-222.696532,0.00017622,2]
[392269939,1761295498271,-77.303468,0.000178,2]
[392269940,1761295499411,677.35426255,0.00017446,2]
[392269942,1761295501462,300.0,0.00017,2]
[392269943,1761295504480,-222.696532,0.000178,2]
[392269944,1761295508572,5000.0,0.000178,2]
[392269945,1761295510880,300.0,0.000174,2]
[392269953,1761295517541,4254.616936,0.000178,2]
[392269954,1761295517563,745.383064,0.000178,2]
[392269955,1761295519191,-317.85319665,0.00017819,2]
[392269956,1761295519635,-882.14680335,0.00017819,2]
[392269960,1761295521794,300.0,0.000174,2]
[392269961,1761295523350,300.0,0.00017,2]
[392269967,1761295532260,300.0,0.000174,2]
[392269969,1761295533552,5000.0,0.00017819,2]
[392269970,1761295534083,300.0,0.00017,2]
[392269975,1761295534821,-1200.0,0.00017972,2]
[392269976,1761295534848,-300.0,0.00017972,2]
[392269980,1761295542258,5000.0,0.00017972,2]
[392269981,1761295549216,-392.51067857,0.00017973,2]
[392269982,1761295551609,-338.46016691,0.00017973,2]
[392269983,1761295554426,-151.34296655,0.00017973,2]
[392269985,1761295555929,-269.06291153,0.00017973,2]
[392269986,1761295558100,-247.93283321,0.00017973,2]
[392269987,1761295558130,5000.0,0.00017973,2]
[392269988,1761295558237,196.0,0.00016,2]
[392269989,1761295558410,196.0,0.0001615,2]
[392269990,1761295558566,196.0,0.000163,2]
[392269991,1761295558736,196.0,0.0001645,2]
[392269992,1761295558906,196.0,0.000166,2]
[392269993,1761295559103,196.0,0.0001675,2]
[392269994,1761295559249,196.0,0.000169,2]
[392269995,1761295559399,196.0,0.0001705,2]
[392269996,1761295559555,196.0,0.000172,2]
[392269997,1761295559720,196.0,0.0001735,2]
[392269998,1761295560089,196.0,0.000175,2]
[392269999,1761295560235,196.0,0.0001765,2]
[392270000,1761295560388,196.0,0.000178,2]
[392270001,1761295560710,196.0,0.0001795,2]
[392270002,1761295562492,-196.0,0.00017973,2]
[392270003,1761295564030,-196.0,0.00017973,2]
[392270004,1761295565243,300.0,0.00017972,2]
[392270005,1761295566455,1956.01,0.00017973,2]
[392270006,1761295566476,3043.99,0.00017973,2]
[392270007,1761295566660,-196.0,0.00017973,2]
[392270008,1761295568526,-182.82555979,0.00017973,2]
[392270009,1761295570696,-245.48407881,0.00017973,2]
[392270010,1761295572082,300.0,0.00017,2]
[392270011,1761295572751,-441.14,0.00017973,2]
[392270012,1761295575389,-319.06619934,0.00017973,2]
[392270013,1761295577531,-163.00999997,0.00017973,2]
[392270014,1761295581976,5000.0,0.00017973,2]
[392270015,1761295583279,-173.75805576,0.00017973,2]
[392270016,1761295585941,-295.99291503,0.00017973,2]
[392270017,1761295587478,-220.52147883,0.00017973,2]
[392270018,1761295589918,1656.02,0.00017973,2]
[392270019,1761295589939,3343.98,0.00017973,2]
[392270020,1761295590033,-427.75979296,0.00017973,2]
[392270021,1761295592803,-290.64945393,0.00017973,2]
[392270022,1761295594206,2286.50216774,0.00017873,2]
[392270023,1761295599086,-198.076796,0.00017973,2]
[392270025,1761295600746,-239.7091623,0.00017973,2]
[392270026,1761295602853,-191.37,0.00017973,2]
[392270027,1761295605500,-256.73,0.00017973,2]
[392270028,1761295606319,4369.52783226,0.00017973,2]
[392270029,1761295606339,630.47216774,0.00017973,2]
[392270030,1761295607538,-164.77441272,0.00017973,2]
[392270031,1761295609174,-304.18963847,0.00017973,2]
[392270032,1761295611543,-168.78025044,0.00017973,2]
[392270033,1761295614434,5000.0,0.00017973,2]
[392270034,1761295614936,-181.56556913,0.00017973,2]
[392270035,1761295618110,-432.55555567,0.00017973,2]
[392270036,1761295620789,-249.12172199,0.00017973,2]
[392270037,1761295624028,300.0,0.00017972,2]
[392270038,1761295624136,-429.36506362,0.00017973,2]
[392270039,1761295625561,-155.36852801,0.00017973,2]
[392270040,1761295628105,-169.64000003,0.00017973,2]
[392270041,1761295629586,-215.53506521,0.00017973,2]
[392270042,1761295630981,4069.53783226,0.00017973,2]
[392270043,1761295631010,930.46216774,0.00017973,2]
[392270044,1761295631101,-258.15826098,0.00017973,2]
[392270045,1761295634419,-319.58095645,0.00017973,2]
[392270046,1761295636362,-408.22555539,0.00017973,2]
[392270047,1761295639315,5000.0,0.00017973,2]
[392270048,1761295648302,187.88725035,0.00017873,2]
[392270049,1761295655337,3881.66058191,0.00017973,2]
[392270050,1761295655363,1118.33941809,0.00017973,2]
[392270051,1761295655745,624.65789372,0.000179,2]
[392270052,1761295663420,5000.0,0.00017973,2]
[392270053,1761295665040,-500.0,0.00017973,2]
[392270054,1761295665067,-500.0,0.00017973,2]
[392270055,1761295665096,-372.8,0.0001799,3]
[392270056,1761295677744,196.0,0.00016,2]
[392270057,1761295677772,196.0,0.000163,2]
[392270058,1761295677861,196.0,0.000166,2]
[392270059,1761295678017,196.0,0.000169,2]
[392270060,1761295678168,196.0,0.000172,2]
[392270061,1761295678396,196.0,0.000175,2]
[392270062,1761295678760,196.0,0.000178,2]
[392270063,1761295680633,5000.0,0.0001799,2]
[392270064,1761295682393,-3507.68842564,0.00018,2]
[392270066,1761295687329,-300.0,0.00017999,2]
[392270067,1761295687368,-9400.01,0.00018,2]
[392270068,1761295687435,-10000.01,0.00018,2]
[392270069,1761295687571,-10000.01,0.00018,2]
[392270070,1761295687716,-10000.01,0.00018,2]
[392270071,1761295688437,-10000.01,0.00018,2]
[392270072,1761295688451,-10000.01,0.00018,2]
[392270073,1761295688464,-10000.01,0.00018,2]
[392270074,1761295688480,-10000.01,0.00018,2]
[392270075,1761295688494,-10000.01,0.00018,2]
[392270076,1761295714104,-196.0,0.00016905,2]
[392270077,1761295714409,-6.7919936,0.00016905,2]
[392270078,1761295719901,-196.0,0.00017076,2]
[392270079,1761295721743,-6.7919936,0.00017076,2]
[392270080,1761295721762,-189.2080064,0.00017248,2]
[392270081,1761295730540,-5000.0,0.00017076,2]
[392270082,1761295743924,0.01,0.00017076,2]
[392270083,1761295743945,4999.99,0.00017076,2]
[392270084,1761295744177,-196.0,0.00017093,2]
[392270085,1761295746728,-421.0617869,0.00017093,2]
[392270086,1761295746765,-4157.8864262,0.00017093,2]
[392270087,1761295746922,-5000.0,0.00017093,2]
[392270088,1761295747750,0.01,0.00017061,2]
[392270089,1761295747772,167.83182264,0.00017061,2]
[392270090,1761295747950,-196.0,0.00017161,2]
[392270091,1761295751784,5000.0,0.00017093,2]
[392270092,1761295752329,-104.0,0.00017161,2]
[392270093,1761295752351,-57.91450661,0.00017162,2]
[392270094,1761295755104,-260.01482763,0.00017162,2]
[392270095,1761295765188,-195.4035525,0.00017162,2]
[392270096,1761295767012,4837.93404713,0.00017162,2]
[392270097,1761295775527,4771.26884787,0.00017162,2]
[392270098,1761295775550,228.73115213,0.00017162,2]
[392270099,1761295779962,-13.5839872,0.00017248,2]
[392270100,1761295795195,-250.0,0.00017581,2]
[392270101,1761295797637,5000.0,0.00017581,2]
[392270102,1761295797665,196.0,0.00016,2]
[392270103,1761295797816,196.0,0.00016175,2]
[392270104,1761295798000,196.0,0.0001635,2]
[392270105,1761295798167,196.0,0.00016525,2]
[392270106,1761295798344,196.0,0.000167,2]
[392270107,1761295798477,196.0,0.00016875,2]
[392270108,1761295798641,196.0,0.0001705,2]
[392270109,1761295798799,196.0,0.00017225,2]
[392270110,1761295798957,196.0,0.000174,2]
[392270111,1761295799112,196.0,0.00017575,2]
[392270112,1761295805461,2000.0,0.0002,7]
[392270113,1761295810351,-196.0,0.0001775,2]
[392270114,1761295812760,4784.95975168,0.0001775,2]
[392270115,1761295821346,4823.05024832,0.0001775,2]
[392270116,1761295821373,176.94975168,0.0001775,2]
[392270117,1761295825573,-300.0,0.00017819,2]
[392270118,1761295828346,300.0,0.000176,2]
[392270119,1761295830048,5000.0,0.00017819,2]
[392270125,1761295832128,-196.0,0.00017925,2]
[392270126,1761295832138,-500.0,0.00017973,2]
[392270127,1761295832147,-500.0,0.00017973,2]
[392270128,1761295832157,-500.0,0.00017973,2]
[392270129,1761295832167,-500.0,0.00017973,2]
[392270130,1761295832177,-343.56236865,0.00017973,2]
[392270131,1761295832186,-500.0,0.00017973,2]
[392270132,1761295832195,-500.0,0.00017973,2]
[392270133,1761295832205,-500.0,0.00017973,2]
[392270134,1761295832214,-1200.0,0.00017999,2]
[392270135,1761295832223,-300.0,0.00017999,2]
[392270136,1761295832232,-50040.43763135,0.00018,2]
[392270138,1761295832243,-772.9696589,0.00018,2]
[392270162,1761295839753,300.0,0.000176,2]
[392270163,1761295840237,-1966.5,0.00018,2]
[392270219,1761295841079,-3e-08,0.00018,2]
[392270279,1761295841667,-2649.30437855,0.00018,2]
[392270282,1761295841684,-10000.01,0.00018,2]
[392270284,1761295841697,-10000.01,0.00018,2]
[392270290,1761295841743,-10000.01,0.00018,2]
[392270292,1761295841755,-10000.01,0.00018,2]
[392270307,1761295841900,-10000.01,0.00018,2]
[392270321,1761295842041,-10000.01,0.00018,2]
[392270427,1761295843346,-264.54775671,0.00018,2]
[392270428,1761295843358,-84993.39306771,0.00018,2]
[392270430,1761295843367,-1400.616465,0.00018099,2]
[392270432,1761295843377,-266.9213699,0.000181,2]
[392270434,1761295843386,-624.65789371,0.00018175,2]
[392270436,1761295843395,-1988.64987516,0.00018253,2]
[392270437,1761295843404,-300.0,0.00018359,2]
[392270439,1761295843419,-300.0,0.00018359,2]
[392270441,1761295843429,-300.0,0.00018359,2]
[392270443,1761295843438,-300.0,0.00018359,2]
[392270445,1761295843447,-300.0,0.00018359,2]
[392270446,1761295843459,-300.0,0.00018359,2]
[392270448,1761295843468,-300.0,0.00018359,2]
[392270450,1761295843477,-300.0,0.00018359,2]
[392270453,1761295843488,-300.0,0.00018359,2]
[392270455,1761295843496,-300.0,0.00018359,2]
[392270458,1761295843505,-300.0,0.00018359,2]
[392270461,1761295843515,-300.0,0.00018359,2]
[392270463,1761295843524,-300.0,0.00018359,2]
[392270465,1761295843533,-300.0,0.00018359,2]
[392270466,1761295843542,-300.0,0.00018359,2]
[392270468,1761295843551,-600.0,0.00018359,2]
[392270470,1761295843560,-624.65789371,0.0001845,2]
[392270472,1761295843569,-250.0,0.00018518,2]
[392270473,1761295843579,-250.00000001,0.00018518,2]
[392270475,1761295843588,-250.0,0.00018518,2]
[392270477,1761295843597,-151.0,0.00018518,2]
[392270479,1761295843606,-312.37953768,0.00018518,2]
[392270481,1761295843615,-151.0,0.00018518,2]
[392270482,1761295843624,-151.0,0.00018518,2]